fUST/lending_fUST_20240123
["ID","MTS","AMOUNT","RATE_DAILY","PERIOD"]
[312576348,1706021253983,-500.0,0.00041095,31]
[312576349,1706021254007,-500.0,0.00041095,31]
[312576350,1706021254030,-500.0,0.00041095,7]
[312576351,1706021254053,-500.0,0.00041095,31]
[312576352,1706021254077,-500.0,0.00041095,31]
[312576353,1706021254102,-500.0,0.00041095,31]
[312576354,1706021254126,-500.0,0.00041095,31]
[312576355,1706021254149,-500.0,0.00041095,31]
[312576356,1706021254172,-364.68481734,0.00041095,31]
[312576357,1706021254195,-500.0,0.00041095,31]
[312576358,1706021254218,-500.0,0.00041095,31]
[312576359,1706021254242,-500.0,0.00041095,31]
[312576360,1706021254264,-500.0,0.00041095,31]
[312576361,1706021254287,-500.0,0.00041095,31]
[312576362,1706021254310,-500.0,0.00041095,31]
[312576363,1706021254336,-500.0,0.00041095,31]
[312576364,1706021254359,-500.0,0.00041095,31]
[312576365,1706021254395,-500.0,0.00041095,31]
[312576366,1706021254423,-500.0,0.00041095,31]
[312576367,1706021254449,-500.0,0.00041095,31]
[312576368,1706021254476,-500.0,0.00041095,30]
[312576369,1706021254501,-500.0,0.00041095,31]
[312576370,1706021254529,-500.0,0.00041095,31]
[312576371,1706021254558,-500.0,0.00041095,31]
[312576372,1706021254588,-500.0,0.00041095,31]
[312576373,1706021254615,-500.0,0.00041095,31]
[312576374,1706021254641,-500.0,0.00041095,31]
[312576375,1706021254666,-500.0,0.00041095,31]
[312576376,1706021254691,-500.0,0.00041095,31]
[312576377,1706021254715,-500.0,0.00041095,31]
[312576378,1706021254740,-500.0,0.00041095,31]
[312576379,1706021254764,-500.0,0.00041095,31]
[312576380,1706021254788,-500.0,0.00041095,31]
[312576381,1706021254813,-500.0,0.00041095,31]
[312576382,1706021254839,-411.09238136,0.00041095,31]
[312576383,1706021254863,-500.0,0.00041095,31]
[312576384,1706021254886,-500.0,0.00041095,31]
[312576385,1706021254911,-500.0,0.00041095,31]
[312576386,1706021254936,-500.0,0.00041095,31]
[312576387,1706021254960,-501.43151573,0.00041095,31]
[312576388,1706021254987,-500.0,0.00041095,31]
[312576389,1706021255012,-500.0,0.00041095,31]
[312576390,1706021255038,-500.0,0.00041095,31]
[312576391,1706021255063,-500.0,0.00041095,31]
[312576392,1706021255092,-502.21799977,0.00041095,31]
[312576393,1706021255118,-533.09991793,0.00041095,31]
[312576394,1706021255143,-500.0,0.00041095,31]
[312576395,1706021255171,-500.0,0.00041095,31]
[312576396,1706021255197,-362.75084611,0.00041095,31]
[312576397,1706021255226,-500.0,0.00041095,31]
[312576398,1706021255254,-500.0,0.00041095,31]
[312576399,1706021255281,-511.59866072,0.00041095,31]
[312576400,1706021255309,-374.60112556,0.00041095,31]
[312576401,1706021255346,-500.0,0.00041095,31]
[312576402,1706021255375,-502.29114101,0.00041095,31]
[312576403,1706021255402,-500.0,0.00041095,31]
[312576404,1706021255430,-500.0,0.00041095,31]
[312576405,1706021255457,-500.0,0.00041095,31]
[312576406,1706021255485,-575.7413397,0.00041095,31]
[312576407,1706021255513,-500.0,0.00041095,31]
[312576408,1706021255540,-500.0,0.00041095,31]
[312576409,1706021255567,-500.0,0.00041095,31]
[312576410,1706021255600,-500.0,0.00041095,31]
[312576411,1706021255626,-523.73977514,0.00041095,31]
[312576412,1706021255650,-500.0,0.00041095,31]
[312576413,1706021255675,-1036.26,0.00041095,31]
[312576414,1706021255701,-161.4374096,0.00041095,31]
[312576415,1706021255726,-500.0,0.00041095,31]
[312576416,1706021255751,-500.0,0.00041095,31]
[312576417,1706021255776,-500.0,0.00041095,31]
[312576418,1706021255802,-500.0,0.00041095,31]
[312576419,1706021255828,-532.51,0.00041095,31]
[312576420,1706021255859,-500.0,0.00041095,31]
[312576421,1706021255885,-500.0,0.00041095,31]
[312576422,1706021255910,-500.0,0.00041095,31]
[312576423,1706021255936,-500.0,0.00041095,31]
[312576424,1706021256106,-500.0,0.00041095,31]
[312576425,1706021256135,-500.0,0.00041095,31]
[312576426,1706021256159,-182.96013886,0.00041095,31]
[312576427,1706021256183,-500.0,0.00041095,31]
[312576428,1706021256208,-500.0,0.00041095,31]
[312576429,1706021256233,-577.63,0.00041095,31]
[312576430,1706021256259,-500.0,0.00041095,31]
[312576431,1706021256284,-500.0,0.00041095,31]
[312576432,1706021256310,-500.0,0.00041095,31]
[312576433,1706021256338,-500.0,0.00041095,31]
[312576434,1706021256362,-500.0,0.00041095,31]
[312576435,1706021256388,-500.0,0.00041095,31]
[312576436,1706021256412,-500.0,0.00041095,31]
[312576437,1706021256438,-690.48,0.00041095,31]
[312576438,1706021256465,-174.78088265,0.00041095,31]
[312576439,1706021256490,-500.0,0.00041095,31]
[312576440,1706021256517,-500.0,0.00041095,31]
[312576441,1706021256551,-500.0,0.00041095,31]
[312576442,1706021256578,-185.74831423,0.00041095,7]
[312576443,1706021256606,-500.0,0.00041095,31]
[312576444,1706021256630,-500.0,0.00041095,31]
[312576445,1706021256655,-500.0,0.00041095,31]
[312576446,1706021256679,-500.0,0.00041095,31]
[312576447,1706021256702,-500.0,0.00041095,31]
[312576448,1706021256726,-464.1836838,0.00041095,31]
[312576449,1706021256751,-500.0,0.00041095,31]
[312576450,1706021256774,-258.43110264,0.00041095,31]
[312576451,1706021256797,-500.0,0.00041095,31]
[312576452,1706021256822,-500.0,0.00041095,31]
[312576453,1706021256846,-515.50740047,0.00041095,31]
[312576454,1706021256869,-500.0,0.00041095,31]
[312576455,1706021256893,-500.0,0.00041095,31]
[312576456,1706021256917,-210.95888336,0.00041095,31]
[312576457,1706021256940,-500.0,0.00041095,31]
[312576458,1706021256965,-500.0,0.00041095,31]
[312576459,1706021256989,-500.0,0.00041095,31]
[312576460,1706021257013,-500.0,0.00041095,31]
[312576461,1706021257038,-234.82941053,0.00041095,31]
[312576462,1706021257064,-150.0,0.00041095,31]
[312576463,1706021257091,-500.0,0.00041095,31]
[312576464,1706021257115,-500.0,0.00041095,31]
[312576465,1706021257139,-500.0,0.00041095,31]
[312576466,1706021257162,-500.0,0.00041095,31]
[312576467,1706021257185,-500.0,0.00041095,31]
[312576468,1706021257208,-705.29,0.00041095,31]
[312576469,1706021257232,-151.60289229,0.00041095,31]
[312576470,1706021257256,-500.0,0.00041095,31]
[312576471,1706021257280,-473.19363087,0.00041095,31]
[312576472,1706021257304,-563.42053104,0.00041095,31]
[312576473,1706021257328,-500.0,0.00041095,31]
[312576474,1706021257355,-500.0,0.00041095,31]
[312576475,1706021257379,-500.0,0.00041095,31]
[312576476,1706021257403,-500.0,0.00041095,31]
[312576477,1706021257427,-552.59,0.00041095,31]
[312576478,1706021257451,-500.0,0.00041095,31]
[312576479,1706021257476,-500.0,0.00041095,31]
[312576480,1706021257501,-500.0,0.00041095,31]
[312576481,1706021257526,-500.0,0.00041095,31]
[312576482,1706021257550,-502.14942184,0.00041095,31]
[312576483,1706021257575,-678.43,0.00041095,31]
[312576484,1706021257602,-500.0,0.00041095,31]
[312576485,1706021257626,-506.47952439,0.00041095,31]
[312576486,1706021257651,-500.0,0.00041095,31]
[312576487,1706021257676,-500.0,0.00041095,31]
[312576488,1706021257700,-220.13525676,0.00041095,31]
[312576489,1706021257725,-500.0,0.00041095,31]
[312576490,1706021257749,-501.91343796,0.00041095,31]
[312576491,1706021257773,-500.0,0.00041095,31]
[312576492,1706021257798,-500.0,0.00041095,14]
[312576493,1706021257823,-500.0,0.00041095,31]
[312576494,1706021257850,-582.00477286,0.00041095,31]
[312576495,1706021257873,-500.0,0.00041095,31]
[312576496,1706021257896,-901.26,0.00041095,31]
[312576497,1706021257919,-500.0,0.00041095,31]
[312576498,1706021257943,-500.0,0.00041095,31]
[312576499,1706021257967,-500.0,0.00041095,31]
[312576500,1706021257991,-500.0,0.00041095,31]
[312576501,1706021258015,-500.0,0.00041095,31]
[312576502,1706021258038,-500.0,0.00041095,31]
[312576503,1706021258062,-500.0,0.00041095,31]
[312576504,1706021258086,-500.0,0.00041095,31]
[312576505,1706021258110,-500.0,0.00041095,31]
[312576506,1706021258134,-500.0,0.00041095,31]
[312576507,1706021258158,-500.0,0.00041095,31]
[312576508,1706021258181,-415.48771235,0.00041095,31]
[312576509,1706021258205,-500.0,0.00041095,31]
[312576510,1706021258228,-500.0,0.00041095,31]
[312576511,1706021258251,-506.86577759,0.00041095,31]
[312576512,1706021258274,-246.99032577,0.00041095,31]
[312576513,1706021258298,-500.0,0.00041095,31]
[312576514,1706021258323,-514.10031491,0.00041095,31]
[312576515,1706021258348,-500.0,0.00041095,31]
[312576516,1706021258373,-500.0,0.00041095,31]
[312576517,1706021258398,-500.0,0.00041095,31]
[312576518,1706021258423,-500.0,0.00041095,31]
[312576519,1706021258561,-500.0,0.00041095,31]
[312576520,1706021258589,-500.0,0.00041095,31]
[312576521,1706021258613,-233.44690638,0.00041095,31]
[312576522,1706021258637,-500.0,0.00041095,31]
[312576523,1706021258661,-500.0,0.00041095,31]
[312576524,1706021258685,-222.14482471,0.00041095,31]
[312576525,1706021258709,-500.0,0.00041095,31]
[312576526,1706021258732,-500.0,0.00041095,31]
[312576527,1706021258757,-500.0,0.00041095,31]
[312576528,1706021258780,-500.0,0.00041095,31]
[312576529,1706021258803,-168.25549174,0.00041095,31]
[312576530,1706021258826,-500.0,0.00041095,31]
[312576531,1706021258851,-500.0,0.00041095,31]
[312576532,1706021258875,-500.0,0.00041095,31]
[312576533,1706021258899,-500.0,0.00041095,31]
[312576534,1706021258922,-500.0,0.00041095,31]
[312576535,1706021258945,-500.0,0.00041095,31]
[312576536,1706021258970,-500.0,0.00041095,31]
[312576537,1706021258996,-500.0,0.00041095,31]
[312576538,1706021259019,-500.0,0.00041095,31]
[312576539,1706021259042,-560.483286,0.00041095,31]
[312576540,1706021259066,-200.0,0.00041095,31]
[312576541,1706021259091,-500.0,0.00041095,31]
[312576542,1706021259114,-500.0,0.00041095,31]
[312576543,1706021259138,-500.0,0.00041095,31]
[312576544,1706021259163,-500.0,0.00041095,31]
[312576545,1706021259189,-500.0,0.00041095,30]
[312576546,1706021259215,-500.0,0.00041095,30]
[312576547,1706021259242,-500.0,0.00041095,31]
[312576548,1706021259268,-500.0,0.00041095,31]
[312576549,1706021259295,-500.0,0.00041095,31]
[312576550,1706021259322,-537.13772058,0.00041095,31]
[312576551,1706021259354,-594.02777711,0.00041095,31]
[312576552,1706021259382,-500.0,0.00041095,31]
[312576553,1706021259408,-504.83669996,0.00041095,31]
[312576554,1706021259438,-500.0,0.00041095,31]
[312576555,1706021259464,-500.0,0.00041095,31]
[312576556,1706021259491,-500.0,0.00041095,31]
[312576557,1706021259518,-500.0,0.00041095,31]
[312576558,1706021259545,-500.0,0.00041095,31]
[312576559,1706021259571,-661.66,0.00041095,31]
[312576560,1706021259600,-663.38,0.00041095,31]
[312576561,1706021259625,-500.0,0.00041095,31]
[312576562,1706021259649,-539.38756779,0.00041095,31]
[312576563,1706021259674,-993.12,0.00041095,31]
[312576564,1706021259698,-300.27344149,0.00041095,31]
[312576565,1706021259722,-500.0,0.00041095,31]
[312576566,1706021259745,-500.0,0.00041095,31]
[312576567,1706021259769,-500.0,0.00041095,31]
[312576568,1706021259793,-220.56229973,0.00041095,31]
[312576569,1706021259816,-500.0,0.00041095,31]
[312576570,1706021259842,-507.26,0.00041095,31]
[312576571,1706021259866,-1220.46,0.00041095,31]
[312576572,1706021259888,-502.70465704,0.00041095,31]
[312576573,1706021259912,-500.0,0.00041095,31]
[312576574,1706021259935,-500.0,0.00041095,31]
[312576575,1706021259959,-500.0,0.00041095,31]
[312576576,1706021259982,-855.69,0.00041095,31]
[312576577,1706021260005,-500.0,0.00041095,20]
[312576578,1706021260028,-502.66935976,0.00041095,31]
[312576579,1706021260053,-500.0,0.00041095,31]
[312576580,1706021260078,-506.24950655,0.00041095,31]
[312576581,1706021260103,-500.0,0.00041095,31]
[312576582,1706021260127,-889.89,0.00041095,31]
[312576583,1706021260150,-1145.19,0.00041095,31]
[312576584,1706021260172,-500.0,0.00041095,31]
[312576585,1706021260195,-500.0,0.00041095,31]
[312576586,1706021260218,-500.0,0.00041095,31]
[312576587,1706021260241,-357.27707893,0.00041095,31]
[312576588,1706021260265,-500.0,0.00041095,31]
[312576589,1706021260289,-500.0,0.00041095,31]
[312576590,1706021260312,-500.0,0.00041095,31]
[312576591,1706021260338,-690.77,0.00041095,31]
[312576592,1706021260362,-500.0,0.00041095,31]
[312576593,1706021260386,-500.0,0.00041095,31]
[312576594,1706021260411,-500.0,0.00041095,31]
[312576595,1706021260435,-500.0,0.00041095,31]
[312576596,1706021260461,-1050.5,0.00041095,31]
[312576597,1706021260485,-500.0,0.00041095,31]
[312576598,1706021260508,-500.0,0.00041095,31]
[312576599,1706021260532,-1087.76,0.00041095,31]
[312576600,1706021260555,-506.90169867,0.00041095,31]
[312576601,1706021260579,-500.0,0.00041095,31]
[312576602,1706021260602,-500.0,0.00041095,31]
[312576603,1706021260625,-195.29608285,0.00041095,31]
[312576604,1706021260649,-500.0,0.00041095,31]
[312576605,1706021260673,-500.0,0.00041095,31]
[312576606,1706021260700,-719.12,0.00041095,31]
[312576607,1706021260725,-6161.17115012,0.00041095,10]
[312576608,1706021260749,-500.0,0.00041095,31]
[312576609,1706021260773,-500.0,0.00041095,31]
[312576610,1706021260797,-500.0,0.00041095,31]
[312576611,1706021260940,-822.66,0.00041095,31]
[312576612,1706021260967,-500.0,0.00041095,31]
[312576613,1706021260996,-246.26787996,0.00041095,31]
[312576614,1706021261023,-500.0,0.00041095,31]
[312576615,1706021261049,-653.39,0.00041095,31]
[312576616,1706021261073,-950.16,0.00041095,7]
[312576617,1706021261099,-500.0,0.00041095,31]
[312576618,1706021261123,-500.0,0.00041095,31]
[312576619,1706021261147,-500.0,0.00041095,31]
[312576620,1706021261170,-500.0,0.00041095,31]
[312576621,1706021261194,-535.30430394,0.00041095,31]
[312576622,1706021261218,-500.0,0.00041095,31]
[312576623,1706021261242,-601.50550858,0.00041095,31]
[312576624,1706021261266,-500.0,0.00041095,31]
[312576625,1706021261291,-4993.58,0.00041095,31]
[312576626,1706021261315,-500.0,0.00041095,31]
[312576627,1706021261340,-500.0,0.00041095,31]
[312576628,1706021261364,-727.99,0.00041095,31]
[312576629,1706021261391,-1018.05,0.00041095,31]
[312576630,1706021261415,-500.0,0.00041095,31]
[312576631,1706021261438,-500.0,0.00041095,31]
[312576632,1706021261462,-500.0,0.00041095,31]
[312576633,1706021261487,-340.33515921,0.00041095,31]
[312576634,1706021261510,-500.0,0.00041095,31]
[312576635,1706021261534,-500.0,0.00041095,31]
[312576636,1706021261557,-500.0,0.00041095,31]
[312576637,1706021261581,-500.0,0.00041095,31]
[312576638,1706021261606,-500.0,0.00041095,31]
[312576639,1706021261629,-500.0,0.00041095,31]
[312576640,1706021261653,-500.0,0.00041095,31]
[312576641,1706021261677,-698.34,0.00041095,31]
[312576642,1706021261700,-500.0,0.00041095,31]
[312576643,1706021261723,-500.0,0.00041095,31]
[312576644,1706021261747,-500.0,0.00041095,31]
[312576645,1706021261770,-500.0,0.00041095,31]
[312576646,1706021261794,-500.0,0.00041095,31]
[312576647,1706021261819,-601.83,0.00041095,31]
[312576648,1706021261844,-26934.74,0.00041095,14]
[312576649,1706021261867,-502.13666339,0.00041095,31]
[312576650,1706021261889,-500.0,0.00041095,31]
[312576651,1706021261913,-434.90798383,0.00041095,31]
[312576652,1706021261937,-500.0,0.00041095,31]
[312576653,1706021261961,-500.0,0.00041095,31]
[312576654,1706021261986,-500.0,0.00041095,31]
[312576655,1706021262010,-500.0,0.00041095,31]
[312576656,1706021262033,-500.0,0.00041095,31]
[312576657,1706021262058,-500.0,0.00041095,31]
[312576658,1706021262083,-500.0,0.00041095,31]
[312576659,1706021262109,-500.0,0.00041095,31]
[312576660,1706021262132,-500.0,0.00041095,31]
[312576661,1706021262155,-197.60181926,0.00041095,31]
[312576662,1706021262177,-406.21873507,0.00041095,31]
[312576663,1706021262201,-1273.46,0.00041095,31]
[312576664,1706021262226,-500.0,0.00041095,31]
[312576665,1706021262250,-503.47676776,0.00041095,31]
[312576666,1706021262274,-506.85,0.00041095,31]
[312576667,1706021262297,-503.69491098,0.00041095,31]
[312576668,1706021262320,-356.12473339,0.00041095,31]
[312576669,1706021262346,-500.0,0.00041095,31]
[312576670,1706021262370,-500.0,0.00041095,31]
[312576671,1706021262394,-500.0,0.00041095,31]
[312576672,1706021262419,-500.0,0.00041095,31]
[312576673,1706021262442,-500.0,0.00041095,31]
[312576674,1706021262465,-500.0,0.00041095,31]
[312576675,1706021262489,-157.91206062,0.00041095,31]
[312576676,1706021262513,-500.0,0.00041095,31]
[312576677,1706021262536,-500.0,0.00041095,31]
[312576678,1706021262560,-500.0,0.00041095,31]
[312576679,1706021262585,-465.43776687,0.00041095,31]
[312576680,1706021262610,-500.0,0.00041095,31]
[312576681,1706021262634,-500.0,0.00041095,31]
[312576682,1706021262658,-500.0,0.00041095,31]
[312576683,1706021262682,-500.0,0.00041095,31]
[312576684,1706021262707,-500.0,0.00041095,31]
[312576685,1706021262731,-760.56,0.00041095,31]
[312576686,1706021262754,-500.0,0.00041095,31]
[312576687,1706021262778,-500.0,0.00041095,31]
[312576688,1706021262801,-500.0,0.00041095,31]
[312576689,1706021262825,-509.40125177,0.00041095,31]
[312576690,1706021262851,-518.59,0.00041095,31]
[312576691,1706021262875,-500.0,0.00041095,31]
[312576692,1706021262899,-500.0,0.00041095,31]
[312576693,1706021262922,-503.46132099,0.00041095,31]
[312576694,1706021262945,-673.36,0.00041095,31]
[312576695,1706021262971,-500.0,0.00041095,31]
[312576696,1706021262997,-500.0,0.00041095,31]
[312576697,1706021263021,-472.62646947,0.00041095,31]
[312576698,1706021263045,-500.0,0.00041095,31]
[312576699,1706021263186,-500.0,0.00041095,31]
[312576700,1706021263212,-500.0,0.00041095,31]
[312576701,1706021263238,-500.0,0.00041095,31]
[312576702,1706021263262,-500.0,0.00041095,31]
[312576703,1706021263288,-500.0,0.00041095,31]
[312576704,1706021263313,-500.0,0.00041095,31]
[312576705,1706021263343,-500.0,0.00041095,31]
[312576706,1706021263373,-500.0,0.00041095,31]
[312576707,1706021263399,-502.88006119,0.00041095,31]
[312576708,1706021263427,-502.05849898,0.00041095,31]
[312576709,1706021263453,-500.0,0.00041095,31]
[312576710,1706021263478,-302.21255943,0.00041095,31]
[312576711,1706021263503,-500.0,0.00041095,31]
[312576712,1706021263528,-500.0,0.00041095,31]
[312576713,1706021263555,-500.0,0.00041095,31]
[312576714,1706021263581,-500.0,0.00041095,31]
[312576715,1706021263610,-500.0,0.00041095,31]
[312576716,1706021263634,-463.74150778,0.00041095,31]
[312576717,1706021263659,-500.0,0.00041095,31]
[312576718,1706021263683,-500.0,0.00041095,31]
[312576719,1706021263707,-500.0,0.00041095,31]
[312576720,1706021263732,-500.0,0.00041095,31]
[312576721,1706021263758,-500.0,0.00041095,31]
[312576722,1706021263781,-500.0,0.00041095,31]
[312576723,1706021263805,-501.61108588,0.00041095,31]
[312576724,1706021263830,-500.0,0.00041095,31]
[312576725,1706021263854,-746.35,0.00041095,31]
[312576726,1706021263878,-532.75345216,0.00041095,31]
[312576727,1706021263901,-746.35,0.00041095,31]
[312576728,1706021263926,-746.35,0.00041095,31]
[312576729,1706021263950,-746.35,0.00041095,31]
[312576730,1706021263974,-500.0,0.00041095,31]
[312576731,1706021263998,-746.35,0.00041095,31]
[312576732,1706021264021,-500.0,0.00041095,31]
[312576733,1706021264044,-746.35,0.00041095,31]
[312576734,1706021264068,-500.0,0.00041095,31]
[312576735,1706021264092,-746.35,0.00041095,31]
[312576736,1706021264117,-746.35,0.00041095,31]
[312576737,1706021264141,-746.35,0.00041095,31]
[312576738,1706021264164,-746.35,0.00041095,31]
[312576739,1706021264188,-746.35,0.00041095,31]
[312576740,1706021264211,-500.0,0.00041095,31]
[312576741,1706021264235,-746.35,0.00041095,31]
[312576742,1706021264257,-746.35,0.00041095,31]
[312576743,1706021264293,-746.35,0.00041095,31]
[312576744,1706021264317,-500.0,0.00041095,31]
[312576745,1706021264341,-746.35,0.00041095,31]
[312576746,1706021264366,-746.35,0.00041095,31]
[312576747,1706021264390,-746.35,0.00041095,31]
[312576748,1706021264414,-746.35,0.00041095,31]
[312576749,1706021264439,-1001.26,0.00041095,31]
[312576750,1706021264463,-532.69580781,0.00041095,31]
[312576751,1706021264487,-157.59946011,0.00041095,31]
[312576752,1706021264511,-503.47241185,0.00041095,31]
[312576753,1706021264534,-500.0,0.00041095,31]
[312576754,1706021264559,-746.35,0.00041095,31]
[312576755,1706021264583,-746.35,0.00041095,31]
[312576756,1706021264608,-505.81672972,0.00041095,31]
[312576757,1706021264632,-746.35,0.00041095,31]
[312576758,1706021264656,-746.35,0.00041095,31]
[312576759,1706021264680,-746.35,0.00041095,31]
[312576760,1706021264704,-505.26817367,0.00041095,31]
[312576761,1706021264727,-746.40431436,0.00041095,31]
[312576762,1706021264752,-638.07,0.00041095,31]
[312576763,1706021264776,-476.48162068,0.00041095,31]
[312576764,1706021264799,-500.0,0.00041095,31]
[312576765,1706021264823,-288.04318377,0.00041095,31]
[312576766,1706021264849,-500.0,0.00041095,31]
[312576767,1706021264872,-500.0,0.00041095,31]
[312576768,1706021264896,-528.89365383,0.00041095,31]
[312576769,1706021264919,-509.92871178,0.00041095,31]
[312576770,1706021264944,-1101.76,0.00041095,31]
[312576771,1706021264969,-511.22981824,0.00041095,31]
[312576772,1706021264994,-500.0,0.00041095,31]
[312576773,1706021265018,-973.74,0.00041095,31]
[312576774,1706021265041,-576.93223868,0.00041095,31]
[312576775,1706021265065,-500.0,0.00041095,31]
[312576776,1706021265089,-500.0,0.00041095,31]
[312576777,1706021265114,-500.0,0.00041095,31]
[312576778,1706021265137,-500.0,0.00041095,31]
[312576779,1706021265162,-195.9324522,0.00041095,31]
[312576780,1706021265185,-500.0,0.00041095,31]
[312576781,1706021265209,-501.37494279,0.00041095,31]
[312576782,1706021265234,-500.0,0.00041095,31]
[312576783,1706021265257,-500.0,0.00041095,31]
[312576784,1706021265282,-500.0,0.00041095,31]
[312576785,1706021265412,-516.41,0.00041095,31]
[312576786,1706021265438,-1055.33,0.00041095,31]
[312576787,1706021265463,-500.0,0.00041095,31]
[312576788,1706021265488,-500.0,0.00041095,31]
[312576789,1706021265513,-500.0,0.00041095,31]
[312576790,1706021265537,-501.86844629,0.00041095,31]
[312576791,1706021265562,-500.0,0.00041095,31]
[312576792,1706021265586,-500.0,0.00041095,31]
[312576793,1706021265611,-742.32,0.00041095,31]
[312576794,1706021265634,-578.13487138,0.00041095,31]
[312576795,1706021265658,-500.67314199,0.00041095,31]
[312576796,1706021265682,-500.0,0.00041095,31]
[312576797,1706021265707,-500.0,0.00041095,31]
[312576798,1706021265730,-424.10716753,0.00041095,31]
[312576799,1706021265754,-501.66952525,0.00041095,31]
[312576800,1706021265779,-500.0,0.00041095,31]
[312576801,1706021265806,-606.2,0.00041095,31]
[312576802,1706021265835,-500.0,0.00041095,31]
[312576803,1706021265861,-500.0,0.00041095,31]
[312576804,1706021265886,-500.0,0.00041095,31]
[312576805,1706021265911,-470.72977519,0.00041095,31]
[312576806,1706021265935,-504.14575217,0.00041095,31]
[312576807,1706021265961,-500.0,0.00041095,31]
[312576808,1706021265989,-500.0,0.00041095,31]
[312576809,1706021266017,-500.0,0.00041095,31]
[312576810,1706021266045,-1128.21,0.00041095,31]
[312576811,1706021266073,-963.14,0.00041095,31]
[312576812,1706021266105,-500.0,0.00041095,31]
[312576813,1706021266131,-560.17775713,0.00041095,31]
[312576814,1706021266157,-500.0,0.00041095,31]
[312576815,1706021266184,-676.58,0.00041095,31]
[312576816,1706021266210,-500.0,0.00041095,31]
[312576817,1706021266237,-168.36859167,0.00041095,31]
[312576818,1706021266262,-500.0,0.00041095,31]
[312576819,1706021266288,-500.0,0.00041095,31]
[312576820,1706021266316,-8710.16389717,0.000411,7]
[312576821,1706021266347,-188.0,0.000411,14]
[312576822,1706021266374,-150.40004763,0.000411,14]
[312576823,1706021266401,-150.40004763,0.000411,14]
[312576824,1706021266426,-150.40004763,0.000411,14]
[312576825,1706021266452,-150.40004763,0.000411,14]
[312576826,1706021266477,-150.4,0.000411,14]
[312576827,1706021266500,-164.04,0.000411,14]
[312576828,1706021266524,-158.3224257,0.0004113,30]
[312576829,1706021266549,-150.0,0.000412,30]
[312576830,1706021266574,-158.3224257,0.00041201,30]
[312576831,1706021266601,-158.3224257,0.00041277,30]
[312576832,1706021266625,-323.103082,0.00041367,11]
[312576833,1706021266651,-500.0,0.00041369,31]
[312576834,1706021266676,-505.47468974,0.00041369,31]
[312576835,1706021266700,-500.0,0.00041369,31]
[312576836,1706021266724,-500.0,0.00041369,31]
[312576837,1706021266747,-500.0,0.00041369,31]
[312576838,1706021266771,-500.0,0.00041369,31]
[312576839,1706021266795,-500.0,0.00041369,31]
[312576840,1706021266818,-286.32535988,0.00041369,14]
[312576841,1706021266845,-500.0,0.00041369,7]
[312576842,1706021266869,-500.0,0.00041369,31]
[312576843,1706021266893,-500.0,0.00041369,31]
[312576844,1706021266917,-500.0,0.00041369,31]
[312576845,1706021266941,-500.0,0.00041369,31]
[312576846,1706021266965,-500.0,0.00041369,31]
[312576847,1706021266989,-596.43,0.00041369,31]